fUST/lending_fUST_20250502
["ID","MTS","AMOUNT","RATE_DAILY","PERIOD"]
[359616362,1746185441234,-223.89015168,0.00019452,2]
[359616363,1746185441244,-400.0,0.00019452,2]
[359616364,1746185441254,-400.0,0.00019452,2]
[359616365,1746185441263,-400.0,0.00019452,2]
[359616366,1746185441273,-400.0,0.00019452,2]
[359616367,1746185441283,-437.16257413,0.00019452,2]
[359616368,1746185441292,-400.0,0.00019452,2]
[359616369,1746185441302,-1032.79,0.00019452,2]
[359616370,1746185441312,-400.0,0.00019452,2]
[359616371,1746185441322,-400.0,0.00019452,2]
[359616372,1746185441332,-400.0,0.00019452,2]
[359616373,1746185441341,-400.0,0.00019452,2]
[359616374,1746185441351,-400.0,0.00019452,2]
[359616375,1746185441360,-519.72291303,0.00019452,2]
[359616376,1746185441370,-400.0,0.00019452,2]
[359616377,1746185441379,-601.25,0.00019452,2]
[359616378,1746185441390,-400.0,0.00019452,2]
[359616379,1746185441400,-400.0,0.00019452,2]
[359616380,1746185441409,-400.0,0.00019452,2]
[359616381,1746185441419,-400.0,0.00019452,2]
[359616382,1746185441428,-400.0,0.00019452,2]
[359616383,1746185441438,-400.0,0.00019452,2]
[359616384,1746185441448,-336.95036186,0.00019452,2]
[359616385,1746185441458,-233.50454344,0.00019452,2]
[359616386,1746185441468,-507.75061227,0.00019452,2]
[359616387,1746185441482,-400.0,0.00019452,2]
[359616388,1746185441492,-314.33922269,0.00019452,2]
[359616389,1746185441503,-400.0,0.00019452,2]
[359616390,1746185441512,-400.0,0.00019452,2]
[359616391,1746185441523,-400.0,0.00019452,2]
[359616392,1746185441532,-400.0,0.00019452,2]
[359616393,1746185441542,-400.0,0.00019452,2]
[359616394,1746185441552,-400.0,0.00019452,2]
[359616395,1746185441562,-428.06,0.00019452,2]
[359616396,1746185441572,-400.0,0.00019452,2]
[359616397,1746185441582,-400.0,0.00019452,2]
[359616398,1746185441592,-400.0,0.00019452,2]
[359616399,1746185441601,-442.62,0.00019452,2]
[359616400,1746185441611,-400.0,0.00019452,2]
[359616401,1746185441621,-400.0,0.00019452,2]
[359616402,1746185441630,-400.0,0.00019452,2]
[359616403,1746185441640,-400.0,0.00019452,2]
[359616404,1746185441649,-400.0,0.00019452,2]
[359616405,1746185441659,-400.0,0.00019452,2]
[359616406,1746185441668,-400.0,0.00019452,2]
[359616407,1746185441678,-400.0,0.00019452,2]
[359616408,1746185441687,-400.47,0.00019452,2]
[359616409,1746185441698,-410.2956358,0.00019452,2]
[359616410,1746185441707,-400.0,0.00019452,2]
[359616411,1746185441716,-431.64,0.00019452,2]
[359616412,1746185441726,-400.0,0.00019452,2]
[359616413,1746185441736,-400.0,0.00019452,2]
[359616414,1746185441745,-400.0,0.00019452,2]
[359616415,1746185441755,-400.0,0.00019452,2]
[359616416,1746185441764,-400.0,0.00019452,2]
[359616417,1746185441774,-400.0,0.00019452,2]
[359616418,1746185441784,-400.0,0.00019452,2]
[359616419,1746185441793,-400.0,0.00019452,2]
[359616420,1746185441803,-400.0,0.00019452,2]
[359616421,1746185441812,-400.0,0.00019452,2]
[359616422,1746185441821,-245.44110449,0.00019452,2]
[359616423,1746185441831,-400.0,0.00019452,2]
[359616424,1746185441840,-400.0,0.00019452,2]
[359616425,1746185441850,-818.16,0.00019452,2]
[359616426,1746185441859,-590.3,0.00019452,2]
[359616427,1746185441868,-400.0,0.00019452,2]
[359616428,1746185441878,-353.34422294,0.00019452,2]
[359616429,1746185441887,-400.0,0.00019452,2]
[359616430,1746185441897,-638.57,0.00019452,2]
[359616431,1746185441907,-400.0,0.00019452,2]
[359616432,1746185441916,-400.0,0.00019452,2]
[359616433,1746185441926,-400.0,0.00019452,2]
[359616434,1746185441935,-400.0,0.00019452,2]
[359616435,1746185441946,-400.0,0.00019452,2]
[359616436,1746185441956,-400.0,0.00019452,2]
[359616437,1746185441966,-400.0,0.00019452,2]
[359616438,1746185441976,-400.0,0.00019452,2]
[359616439,1746185441986,-400.0,0.00019452,2]
[359616440,1746185441995,-400.0,0.00019452,2]
[359616441,1746185442005,-310.20327045,0.00019452,2]
[359616442,1746185442015,-400.0,0.00019452,2]
[359616443,1746185442024,-400.0,0.00019452,2]
[359616444,1746185442034,-400.0,0.00019452,2]
[359616445,1746185442043,-400.0,0.00019452,2]
[359616446,1746185442052,-442.44014399,0.00019452,2]
[359616447,1746185442062,-400.0,0.00019452,2]
[359616448,1746185442072,-400.0,0.00019452,2]
[359616449,1746185442081,-400.0,0.00019452,2]
[359616450,1746185442091,-461.11,0.00019452,2]
[359616451,1746185442101,-400.0,0.00019452,2]
[359616452,1746185442111,-700.84,0.00019452,2]
[359616453,1746185442121,-1159.3,0.00019452,2]
[359616454,1746185442130,-400.0,0.00019452,2]
[359616455,1746185442140,-1067.69,0.00019452,2]
[359616456,1746185442149,-3446.47,0.00019452,2]
[359616457,1746185442159,-400.0,0.00019452,2]
[359616458,1746185442169,-371.35104324,0.00019452,2]
[359616459,1746185442178,-652.79,0.00019452,2]
[359616460,1746185442187,-400.0,0.00019452,2]
[359616461,1746185442197,-400.0,0.00019452,2]
[359616462,1746185442206,-400.0,0.00019452,2]
[359616463,1746185442215,-400.0,0.00019452,2]
[359616464,1746185442225,-400.0,0.00019452,2]
[359616465,1746185442234,-673.12,0.00019452,2]
[359616466,1746185442244,-400.0,0.00019452,2]
[359616467,1746185442254,-400.0,0.00019452,2]
[359616468,1746185442264,-400.0,0.00019452,2]
[359616469,1746185442274,-400.0,0.00019452,2]
[359616470,1746185442283,-191.76830321,0.00019452,2]
[359616471,1746185442292,-400.0,0.00019452,2]
[359616472,1746185442302,-400.0,0.00019452,2]
[359616473,1746185442311,-400.0,0.00019452,2]
[359616474,1746185442322,-400.0,0.00019452,2]
[359616475,1746185442331,-400.0,0.00019452,2]
[359616476,1746185442341,-400.0,0.00019452,2]
[359616477,1746185442350,-400.0,0.00019452,2]
[359616478,1746185442360,-751.31,0.00019452,2]
[359616479,1746185442369,-400.0,0.00019452,2]
[359616480,1746185442379,-400.0,0.00019452,2]
[359616481,1746185442389,-723.63,0.00019452,2]
[359616482,1746185442398,-400.0,0.00019452,2]
[359616483,1746185442409,-220.51396564,0.00019452,2]
[359616484,1746185442419,-2313.15,0.00019452,2]
[359616485,1746185442429,-400.0,0.00019452,2]
[359616486,1746185442439,-400.0,0.00019452,2]
[359616487,1746185442448,-400.0,0.00019452,2]
[359616488,1746185442458,-422.52,0.00019452,2]
[359616489,1746185442469,-816.29,0.00019452,2]
[359616490,1746185442481,-400.0,0.00019452,2]
[359616491,1746185442491,-514.13,0.00019452,2]
[359616492,1746185442501,-400.0,0.00019452,2]
[359616493,1746185442510,-400.0,0.00019452,2]
[359616494,1746185442520,-400.0,0.00019452,2]
[359616495,1746185442530,-1458.46,0.00019452,2]
[359616496,1746185442539,-400.0,0.00019452,2]
[359616497,1746185442549,-857.49,0.00019452,2]
[359616498,1746185442558,-400.0,0.00019452,2]
[359616499,1746185442568,-400.0,0.00019452,2]
[359616500,1746185442577,-400.0,0.00019452,2]
[359616501,1746185442587,-400.0,0.00019452,2]
[359616502,1746185442596,-400.0,0.00019452,2]
[359616503,1746185442606,-400.0,0.00019452,2]
[359616504,1746185442615,-400.0,0.00019452,2]
[359616505,1746185442625,-421.66,0.00019452,2]
[359616506,1746185442634,-400.0,0.00019452,2]
[359616507,1746185442645,-400.0,0.00019452,2]
[359616508,1746185442654,-459.53,0.00019452,2]
[359616509,1746185442663,-1278.92,0.00019452,2]
[359616510,1746185442673,-400.0,0.00019452,2]
[359616511,1746185442683,-400.0,0.00019452,2]
[359616512,1746185442693,-411.2180585,0.00019452,2]
[359616513,1746185442703,-400.0,0.00019452,2]
[359616514,1746185442713,-1278.02,0.00019452,2]
[359616515,1746185442722,-400.0,0.00019452,2]
[359616516,1746185442733,-915.5,0.00019452,2]
[359616517,1746185442743,-400.0,0.00019452,2]
[359616518,1746185442754,-400.0,0.00019452,2]
[359616519,1746185442763,-400.0,0.00019452,2]
[359616520,1746185442772,-400.0,0.00019452,2]
[359616521,1746185442782,-400.0,0.00019452,2]
[359616522,1746185442792,-400.0,0.00019452,2]
[359616523,1746185442801,-431.04,0.00019452,2]
[359616524,1746185442811,-400.0,0.00019452,2]
[359616525,1746185442821,-1355.25,0.00019452,2]
[359616526,1746185442831,-796.73,0.00019452,2]
[359616527,1746185442840,-447.79,0.00019452,2]
[359616529,1746185442850,-623.88,0.00019452,2]
[359616530,1746185442859,-1001.69,0.00019452,2]
[359616531,1746185442869,-400.0,0.00019452,2]
[359616533,1746185442878,-400.0,0.00019452,2]
[359616534,1746185442887,-400.0,0.00019452,2]
[359616535,1746185442897,-886.17,0.00019452,2]
[359616536,1746185442906,-400.0,0.00019452,2]
[359616537,1746185442916,-400.0,0.00019452,2]
[359616538,1746185442925,-400.0,0.00019452,2]
[359616539,1746185442935,-400.0,0.00019452,2]
[359616540,1746185442944,-400.0,0.00019452,2]
[359616541,1746185442954,-400.0,0.00019452,2]
[359616542,1746185442964,-311.05584239,0.00019452,2]
[359616543,1746185442973,-892.13,0.00019452,2]
[359616544,1746185442983,-400.0,0.00019452,2]
[359616545,1746185442992,-400.0,0.00019452,2]
[359616547,1746185443002,-400.0,0.00019452,2]
[359616549,1746185443012,-400.0,0.00019452,2]
[359616551,1746185443021,-333.5591973,0.00019452,2]
[359616552,1746185443031,-408.14,0.00019452,2]
[359616554,1746185443040,-400.0,0.00019452,2]
[359616556,1746185443050,-447.49869662,0.00019452,2]
[359616557,1746185443059,-687.84,0.00019452,2]
[359616558,1746185443069,-400.0,0.00019452,2]
[359616559,1746185443078,-400.0,0.00019452,2]
[359616560,1746185443087,-807.78,0.00019452,2]
[359616561,1746185443096,-400.0,0.00019452,2]
[359616562,1746185443106,-400.0,0.00019452,2]
[359616564,1746185443116,-400.0,0.00019452,2]
[359616566,1746185443126,-400.0,0.00019452,2]
[359616568,1746185443135,-581.24,0.00019452,2]
[359616570,1746185443145,-623.0,0.00019452,2]
[359616573,1746185443155,-400.0,0.00019452,2]
[359616575,1746185443165,-400.0,0.00019452,2]
[359616577,1746185443176,-156.071238,0.00019452,2]
[359616579,1746185443186,-400.0,0.00019452,2]
[359616581,1746185443196,-533.14,0.00019452,2]
[359616583,1746185443206,-151.0,0.00019452,2]
[359616585,1746185443216,-151.0,0.00019452,2]
[359616587,1746185443226,-400.0,0.00019452,2]
[359616589,1746185443236,-400.0,0.00019452,2]
[359616591,1746185443246,-400.0,0.00019452,2]
[359616593,1746185443256,-200.0,0.00019452,2]
[359616595,1746185443265,-400.0,0.00019452,2]
[359616597,1746185443275,-707.11,0.00019452,2]
[359616599,1746185443285,-209.06674803,0.00019452,2]
[359616601,1746185443295,-511.12,0.00019452,2]
[359616603,1746185443304,-2665.12,0.00019452,2]
[359616605,1746185443314,-400.0,0.00019452,2]
[359616607,1746185443323,-400.0,0.00019452,2]
[359616609,1746185443332,-433.68,0.00019452,2]
[359616611,1746185443342,-400.0,0.00019452,2]
[359616613,1746185443351,-400.0,0.00019452,2]
[359616615,1746185443361,-1489.41,0.00019452,2]
[359616617,1746185443370,-501.99125541,0.00019452,2]
[359616619,1746185443380,-576.36,0.00019452,2]
[359616621,1746185443390,-400.0,0.00019452,2]
[359616623,1746185443400,-659.2,0.00019452,2]
[359616625,1746185443410,-400.0,0.00019452,2]
[359616627,1746185443420,-400.0,0.00019452,2]
[359616629,1746185443430,-400.0,0.00019452,2]
[359616631,1746185443440,-400.0,0.00019452,2]
[359616633,1746185443450,-644.95,0.00019452,2]
[359616635,1746185443459,-400.0,0.00019452,2]
[359616637,1746185443469,-400.0,0.00019452,2]
[359616639,1746185443482,-400.0,0.00019452,2]
[359616641,1746185443492,-400.0,0.00019452,2]
[359616643,1746185443503,-400.0,0.00019452,2]
[359616646,1746185443514,-400.0,0.00019452,2]
[359616648,1746185443525,-626.15,0.00019452,2]
[359616650,1746185443535,-400.0,0.00019452,2]
[359616652,1746185443544,-400.0,0.00019452,2]
[359616654,1746185443557,-414.29,0.00019452,2]
[359616656,1746185443567,-735.11,0.00019452,2]
[359616658,1746185443577,-400.0,0.00019452,2]
[359616660,1746185443587,-400.0,0.00019452,2]
[359616662,1746185443596,-400.0,0.00019452,2]
[359616664,1746185443606,-400.0,0.00019452,2]
[359616666,1746185443616,-400.0,0.00019452,2]
[359616668,1746185443625,-400.0,0.00019452,2]
[359616670,1746185443634,-400.0,0.00019452,2]
[359616672,1746185443645,-688.83,0.00019452,2]
[359616674,1746185443655,-400.0,0.00019452,2]
[359616676,1746185443664,-400.0,0.00019452,2]
[359616678,1746185443674,-151.0,0.00019452,2]
[359616680,1746185443684,-293.500385,0.00019452,2]
[359616682,1746185443694,-400.0,0.00019452,2]
[359616684,1746185443704,-500.0,0.00019452,2]
[359616686,1746185443714,-491.41,0.00019452,2]
[359616688,1746185443724,-400.0,0.00019452,2]
[359616690,1746185443734,-400.0,0.00019452,2]
[359616692,1746185443744,-400.0,0.00019452,2]
[359616694,1746185443754,-400.0,0.00019452,2]
[359616696,1746185443764,-151.0,0.00019452,2]
[359616698,1746185443774,-1953.1,0.00019452,2]
[359616700,1746185443784,-722.49,0.00019452,2]
[359616702,1746185443794,-801.02,0.00019452,2]
[359616704,1746185443803,-1894.3,0.00019452,2]
[359616706,1746185443813,-400.0,0.00019452,2]
[359616708,1746185443823,-769.83,0.00019452,2]
[359616710,1746185443832,-501.73,0.00019452,2]
[359616713,1746185443843,-736.64,0.00019452,2]
[359616715,1746185443852,-1879.43,0.00019452,2]
[359616717,1746185443862,-460.12,0.00019452,2]
[359616719,1746185443871,-259.35935749,0.00019452,2]
[359616721,1746185443881,-592.34,0.00019452,2]
[359616723,1746185443891,-400.0,0.00019452,2]
[359616725,1746185443900,-631.14,0.00019452,2]
[359616727,1746185443910,-400.0,0.00019452,2]
[359616729,1746185443919,-400.0,0.00019452,2]
[359616731,1746185443928,-400.0,0.00019452,2]
[359616733,1746185443938,-400.0,0.00019452,2]
[359616735,1746185443948,-1112.04,0.00019452,2]
[359616737,1746185443957,-400.0,0.00019452,2]
[359616739,1746185443967,-3248.52,0.00019452,2]
[359616741,1746185443976,-400.0,0.00019452,2]
[359616743,1746185443986,-1247.75,0.00019452,2]
[359616745,1746185443995,-400.0,0.00019452,2]
[359616747,1746185444006,-1902.81,0.00019452,2]
[359616749,1746185444016,-7872.97,0.00019452,2]
[359616751,1746185444026,-881.57,0.00019452,2]
[359616753,1746185444035,-618.88,0.00019452,2]
[359616755,1746185444045,-1505.02,0.00019452,2]
[359616757,1746185444054,-400.0,0.00019452,2]
[359616759,1746185444064,-400.0,0.00019452,2]
[359616761,1746185444074,-400.0,0.00019452,2]
[359616763,1746185444084,-649.86,0.00019452,2]
[359616765,1746185444094,-3315.96,0.00019452,2]
[359616767,1746185444104,-280.54,0.00019452,2]
[359616769,1746185444114,-482.45,0.00019452,2]
[359616771,1746185444125,-7081.54,0.00019452,2]
[359616773,1746185444135,-400.0,0.00019452,2]
[359616775,1746185444146,-2683.67,0.00019452,2]
[359616777,1746185444156,-3011.23,0.00019452,2]
[359616779,1746185444166,-458.52,0.00019452,2]
[359616782,1746185444175,-400.0,0.00019452,2]
[359616784,1746185444184,-3881.91,0.00019452,2]
[359616785,1746185444194,-749.17,0.00019452,2]
[359616786,1746185444203,-2180.2,0.00019452,2]
[359616787,1746185444213,-151.6623163,0.00019452,2]
[359616788,1746185444222,-424.63,0.00019452,2]
[359616789,1746185444232,-443.79,0.00019452,2]
[359616790,1746185444241,-2888.0,0.00019452,2]
[359616791,1746185444250,-400.0,0.00019452,2]
[359616793,1746185444260,-267.50688699,0.00019452,2]
[359616795,1746185444269,-1347.15,0.00019452,2]
[359616797,1746185444279,-727.94,0.00019452,2]
[359616800,1746185444290,-473.74,0.00019452,2]
[359616802,1746185444301,-420.15616732,0.00019452,2]
[359616804,1746185444311,-400.0,0.00019452,2]
[359616806,1746185444321,-1199.02,0.00019452,2]
[359616808,1746185444331,-400.0,0.00019452,2]
[359616810,1746185444340,-400.0,0.00019452,2]
[359616812,1746185444350,-807.46,0.00019452,2]
[359616814,1746185444360,-400.0,0.00019452,2]
[359616816,1746185444370,-436.86,0.00019452,2]
[359616818,1746185444380,-400.0,0.00019452,2]
[359616820,1746185444391,-400.0,0.00019452,2]
[359616822,1746185444400,-3425.0,0.00019452,2]
[359616824,1746185444410,-6058.19,0.00019452,2]
[359616826,1746185444420,-400.0,0.00019452,2]
[359616828,1746185444430,-2963.19,0.00019452,2]
[359616831,1746185444440,-643.95,0.00019452,2]
[359616833,1746185444450,-204.54671587,0.00019452,2]
[359616835,1746185444460,-1423.0,0.00019452,2]
[359616837,1746185444471,-487.89,0.00019452,2]
[359616839,1746185444483,-1313.55,0.00019452,2]
[359616841,1746185444494,-400.0,0.00019452,2]
[359616843,1746185444504,-765.3,0.00019452,2]
[359616845,1746185444514,-484.53,0.00019452,2]
[359616847,1746185444524,-400.0,0.00019452,2]
[359616849,1746185444534,-485.46,0.00019452,2]
[359616851,1746185444544,-1964.82,0.00019452,2]
[359616854,1746185444555,-3243.68,0.00019452,2]
[359616856,1746185444566,-400.0,0.00019452,2]
[359616858,1746185444576,-842.14,0.00019452,2]
[359616860,1746185444586,-400.0,0.00019452,2]
[359616862,1746185444596,-400.0,0.00019452,2]
[359616864,1746185444606,-157.65945186,0.00019452,2]
[359616866,1746185444615,-400.0,0.00019452,2]
[359616868,1746185444626,-1021.05,0.00019452,2]
[359616870,1746185444635,-406.75,0.00019452,2]
[359616872,1746185444646,-1593.19,0.00019452,2]
[359616874,1746185444656,-400.0,0.00019452,2]
[359616876,1746185444666,-400.0,0.00019452,2]
[359616879,1746185444676,-750.38,0.00019452,2]
[359616881,1746185444686,-645.7,0.00019452,2]
[359616883,1746185444695,-400.0,0.00019452,2]
[359616885,1746185444706,-400.0,0.00019452,2]
[359616887,1746185444717,-1063.72,0.00019452,2]
[359616889,1746185444727,-400.0,0.00019452,2]
[359616891,1746185444737,-899.32,0.00019452,2]
[359616893,1746185444748,-2639.3,0.00019452,2]
[359616895,1746185444758,-400.0,0.00019452,2]
[359616897,1746185444768,-400.0,0.00019452,2]
[359616899,1746185444779,-569.55,0.00019452,2]
[359616901,1746185444788,-2594.36,0.00019452,2]
[359616903,1746185444798,-558.7,0.00019452,2]
[359616905,1746185444807,-400.0,0.00019452,2]
[359616907,1746185444817,-433.72,0.00019452,2]
[359616909,1746185444827,-400.0,0.00019452,2]
[359616911,1746185444837,-400.0,0.00019452,2]
[359616913,1746185444846,-400.0,0.00019452,2]
[359616915,1746185444856,-400.0,0.00019452,2]
[359616917,1746185444866,-400.0,0.00019452,2]
[359616919,1746185444875,-2628.26,0.00019452,2]
[359616921,1746185444884,-8714.29,0.00019452,2]
[359616923,1746185444894,-480.3,0.00019452,2]
[359616925,1746185444903,-985.69,0.00019452,2]
[359616927,1746185444912,-400.0,0.00019452,2]
[359616930,1746185444921,-434.76,0.00019452,2]
[359616932,1746185444931,-400.0,0.00019452,2]
[359616934,1746185444941,-532.8805023,0.00019452,2]
[359616936,1746185444951,-400.0,0.00019452,2]
[359616938,1746185444960,-1331.82,0.00019452,2]
[359616940,1746185444970,-1859.75,0.00019452,2]
[359616942,1746185444980,-400.0,0.00019452,2]
[359616944,1746185444990,-1074.08,0.00019452,2]
[359616946,1746185445001,-400.0,0.00019452,2]
[359616948,1746185445012,-1345.66,0.00019452,2]
[359616950,1746185445022,-400.0,0.00019452,2]
[359616952,1746185445033,-1000.0,0.00019452,2]
[359616954,1746185445043,-500.0,0.00019452,2]
[359616956,1746185445053,-400.0,0.00019452,2]
[359616958,1746185445064,-3197.69,0.00019452,2]
[359616960,1746185445074,-803.39,0.00019452,2]
[359616963,1746185445085,-1072.5,0.00019452,2]
[359616965,1746185445095,-665.07,0.00019452,2]
[359616967,1746185445106,-400.0,0.00019452,2]
[359616969,1746185445115,-400.0,0.00019452,2]
[359616971,1746185445126,-3408.71,0.00019452,2]
[359616973,1746185445136,-400.0,0.00019452,2]
[359616975,1746185445146,-820.08,0.00019452,2]
[359616977,1746185445155,-732.55,0.00019452,2]
[359616979,1746185445166,-472.58,0.00019452,2]
[359616981,1746185445176,-2446.61,0.00019452,2]
[359616983,1746185445186,-2929.98,0.00019452,2]
[359616985,1746185445196,-400.0,0.00019452,2]
[359616987,1746185445205,-842.6,0.00019452,2]
[359616990,1746185445215,-400.0,0.00019452,2]
[359616992,1746185445225,-3349.54,0.00019452,2]
[359616994,1746185445235,-319.34705371,0.00019452,2]
[359616996,1746185445245,-400.0,0.00019452,2]
[359616998,1746185445255,-400.0,0.00019452,2]
[359617000,1746185445265,-1748.95,0.00019452,2]
[359617002,1746185445275,-690.07,0.00019452,2]
[359617004,1746185445284,-1928.04,0.00019452,2]
[359617006,1746185445294,-400.0,0.00019452,2]
[359617008,1746185445304,-400.0,0.00019452,2]
[359617010,1746185445314,-400.0,0.00019452,2]
[359617013,1746185445324,-400.0,0.00019452,2]
[359617015,1746185445334,-2082.42,0.00019452,2]
[359617038,1746185445344,-400.0,0.00019452,2]
[359617042,1746185445569,-706.1,0.00019452,2]
[359617045,1746185445579,-495.93,0.00019452,2]
[359617047,1746185445588,-1111.57,0.00019452,2]
[359617049,1746185445597,-400.0,0.00019452,2]
[359617051,1746185445606,-400.0,0.00019452,2]
[359617053,1746185445615,-1660.15,0.00019452,2]
[359617055,1746185445623,-620.3,0.00019452,2]
[359617057,1746185445633,-400.0,0.00019452,2]
[359617059,1746185445642,-1795.09,0.00019452,2]
[359617061,1746185445651,-400.0,0.00019452,2]
[359617063,1746185445661,-2337.77,0.00019452,2]
[359617065,1746185445670,-400.0,0.00019452,2]
[359617067,1746185445679,-400.0,0.00019452,2]
[359617069,1746185445688,-400.0,0.00019452,2]
[359617071,1746185445697,-400.0,0.00019452,2]
[359617073,1746185445707,-400.0,0.00019452,2]
[359617076,1746185445716,-6182.59,0.00019452,2]
[359617079,1746185445726,-400.0,0.00019452,2]
[359617081,1746185445736,-400.0,0.00019452,2]
[359617083,1746185445746,-400.0,0.00019452,2]
[359617085,1746185445756,-400.0,0.00019452,2]
[359617087,1746185445767,-17175.32,0.00019452,2]
[359617089,1746185445776,-400.0,0.00019452,2]
[359617091,1746185445786,-400.0,0.00019452,2]
[359617093,1746185445795,-400.0,0.00019452,2]
[359617095,1746185445804,-707.78,0.00019452,2]
[359617097,1746185445814,-400.0,0.00019452,2]
[359617099,1746185445823,-706.16,0.00019452,2]
[359617101,1746185445833,-891.66,0.00019452,2]
[359617103,1746185445842,-400.0,0.00019452,2]
[359617105,1746185445854,-507.87766327,0.00019473,2]
[359617107,1746185445865,-500.0,0.00019473,2]
[359617109,1746185445874,-500.0,0.00019473,2]
[359617111,1746185445884,-500.0,0.00019473,2]
[359617113,1746185445894,-341.47324111,0.00019473,2]
[359617115,1746185445903,-300.0,0.00019473,2]
[359617117,1746185445913,-500.0,0.00019473,2]
[359617119,1746185445923,-500.0,0.00019473,2]
[359617121,1746185445933,-500.0,0.00019473,2]
[359617123,1746185445942,-500.0,0.00019473,2]
[359617125,1746185445952,-500.0,0.00019473,2]
[359617127,1746185445961,-2738.0216284,0.00019528,2]
[359617130,1746185445972,-12598.98820072,0.00019626,3]
[359617132,1746185445981,-160.0,0.00019626,3]
[359617134,1746185445991,-500.0,0.00019698,2]
[359617136,1746185446001,-500.0,0.00019698,2]
[359617138,1746185446011,-500.0,0.00019698,2]
[359617140,1746185446020,-500.0,0.00019698,2]
[359617142,1746185446029,-542.58,0.00019698,2]
[359617144,1746185446039,-500.0,0.00019698,2]
[359617146,1746185446048,-418.7,0.00019698,2]
[359617148,1746185446058,-208.33725657,0.00019726,2]
[359617150,1746185446067,-200.0,0.00019726,2]
[359617152,1746185446078,-239.78133551,0.00019726,2]
[359617154,1746185446087,-400.0,0.00019726,2]
[359617156,1746185446097,-400.0,0.00019726,2]
[359617158,1746185446107,-400.0,0.00019726,2]
[359617160,1746185446116,-400.0,0.00019726,2]
[359617162,1746185446125,-429.844568,0.00019726,2]
[359617164,1746185446135,-400.0,0.00019726,2]
[359617166,1746185446146,-400.0,0.00019726,2]
[359617168,1746185446156,-1032.79,0.00019726,2]
[359617170,1746185446166,-400.0,0.00019726,2]
[359617173,1746185446177,-400.0,0.00019726,2]
[359617175,1746185446187,-400.0,0.00019726,2]
[359617177,1746185446197,-400.0,0.00019726,2]
[359617179,1746185446206,-601.25,0.00019726,2]
[359617181,1746185446216,-432.34077512,0.00019726,2]
[359617183,1746185446226,-400.0,0.00019726,2]
[359617185,1746185446237,-400.0,0.00019726,2]
[359617187,1746185446247,-400.0,0.00019726,2]
[359617189,1746185446257,-400.0,0.00019726,2]
[359617191,1746185446267,-400.0,0.00019726,2]
[359617193,1746185446277,-400.0,0.00019726,2]
[359617195,1746185446287,-428.06,0.00019726,2]
[359617197,1746185446298,-400.0,0.00019726,2]
[359617199,1746185446308,-400.0,0.00019726,2]
[359617202,1746185446318,-442.62,0.00019726,2]
[359617204,1746185446328,-400.0,0.00019726,2]
[359617206,1746185446338,-400.0,0.00019726,2]
[359617208,1746185446347,-400.0,0.00019726,2]